fUSD/lending_fUSD_20250106
["ID","MTS","AMOUNT","RATE_DAILY","PERIOD"]
[347865101,1736170244288,-500.0,0.00011119,2]
[347865103,1736170244300,-500.0,0.00011119,2]
[347865105,1736170244309,-500.0,0.00011119,2]
[347865107,1736170244318,-500.0,0.00011119,2]
[347865109,1736170244327,-2500.52,0.00011119,2]
[347865111,1736170244337,-500.0,0.00011119,2]
[347865113,1736170244347,-500.0,0.00011119,2]
[347865115,1736170244356,-500.0,0.00011119,2]
[347865117,1736170244365,-500.0,0.00011119,2]
[347865119,1736170244375,-1382.62,0.00011119,2]
[347865121,1736170244386,-500.0,0.00011119,2]
[347865123,1736170244396,-500.0,0.00011119,2]
[347865125,1736170244405,-500.0,0.00011119,2]
[347865127,1736170244414,-500.0,0.00011119,2]
[347865129,1736170244423,-4300.01,0.00011119,2]
[347865131,1736170244432,-500.0,0.00011119,2]
[347865133,1736170244443,-552.8613341,0.00011119,2]
[347865135,1736170244453,-500.0,0.00011119,2]
[347865137,1736170244462,-3578.64,0.00011119,2]
[347865139,1736170244474,-500.0,0.00011119,2]
[347865141,1736170244483,-500.0,0.00011119,2]
[347865143,1736170244492,-500.0,0.00011119,2]
[347865145,1736170244501,-500.0,0.00011119,2]
[347865147,1736170244510,-500.0,0.00011119,2]
[347865149,1736170244519,-1035.245729,0.00011119,2]
[347865151,1736170244528,-500.0,0.00011119,2]
[347865153,1736170244538,-1095.613476,0.00011119,2]
[347865155,1736170244547,-1600.59,0.00011119,2]
[347865157,1736170244556,-500.0,0.00011119,2]
[347865159,1736170244565,-2979.27,0.00011119,2]
[347865161,1736170244575,-500.0,0.00011119,2]
[347865163,1736170244584,-500.0,0.00011119,2]
[347865165,1736170244593,-537.99,0.00011119,2]
[347865167,1736170244602,-500.0,0.00011119,2]
[347865169,1736170244611,-500.0,0.00011119,2]
[347865171,1736170244620,-645.64,0.00011119,2]
[347865173,1736170244629,-1027.69,0.00011119,2]
[347865175,1736170244639,-196.38,0.00011119,2]
[347865177,1736170244649,-500.0,0.00011119,2]
[347865179,1736170244657,-500.0,0.00011119,2]
[347865181,1736170244667,-1801.97,0.00011119,2]
[347865183,1736170244676,-1040.52,0.00011119,2]
[347865185,1736170244685,-500.0,0.00011119,2]
[347865187,1736170244694,-1645.32,0.00011119,2]
[347865189,1736170244704,-500.0,0.00011119,2]
[347865191,1736170244713,-500.0,0.00011119,2]
[347865193,1736170244722,-2061.06,0.00011119,2]
[347865195,1736170244731,-500.0,0.00011119,2]
[347865197,1736170244742,-500.0,0.00011119,2]
[347865199,1736170244751,-500.0,0.00011119,2]
[347865201,1736170244760,-572.85,0.00011119,2]
[347865203,1736170244770,-679.95,0.00011119,2]
[347865205,1736170244779,-2181.44,0.00011119,2]
[347865207,1736170244788,-500.0,0.00011119,2]
[347865209,1736170244798,-500.0,0.00011119,2]
[347865211,1736170244807,-500.0,0.00011119,2]
[347865213,1736170244816,-1457.21,0.00011119,2]
[347865215,1736170244826,-500.0,0.00011119,2]
[347865217,1736170244835,-500.0,0.00011119,2]
[347865219,1736170244844,-500.0,0.00011119,2]
[347865221,1736170244854,-573.52,0.00011119,2]
[347865223,1736170244862,-500.0,0.00011119,2]
[347865225,1736170244871,-636.81,0.00011119,2]
[347865227,1736170244881,-944.53,0.00011119,2]
[347865229,1736170244890,-176.37434487,0.00011119,2]
[347865231,1736170244900,-500.0,0.00011119,2]
[347865233,1736170244908,-2089.79,0.00011119,2]
[347865235,1736170244919,-500.0,0.00011119,2]
[347865237,1736170244928,-944.14,0.00011119,2]
[347865239,1736170244937,-556.491,0.0001112,2]
[347865241,1736170244947,-500.0,0.0001112,2]
[347865243,1736170244955,-500.0,0.0001112,2]
[347865245,1736170244965,-549.62,0.0001112,2]
[347865247,1736170244974,-500.0,0.0001112,2]
[347865249,1736170244984,-500.0,0.0001112,2]
[347865251,1736170244993,-1676.32,0.0001112,2]
[347865253,1736170245003,-500.0,0.0001112,2]
[347865255,1736170245012,-500.0,0.0001112,2]
[347865257,1736170245021,-500.0,0.0001112,2]
[347865259,1736170245030,-594.78,0.0001112,2]
[347865261,1736170245040,-1136.96,0.0001112,2]
[347865263,1736170245049,-500.0,0.0001112,2]
[347865265,1736170245058,-2498.05,0.0001112,2]
[347865267,1736170245067,-635.2,0.0001112,2]
[347865269,1736170245077,-500.0,0.0001112,2]
[347865271,1736170245086,-1860.0,0.00011121,2]
[347865273,1736170245095,-1258.0,0.00011121,2]
[347865275,1736170245105,-819.0,0.00011121,2]
[347865277,1736170245115,-918.0,0.00011121,2]
[347865279,1736170245124,-3776.0,0.00011121,2]
[347865281,1736170245133,-3975.0,0.00011121,2]
[347865283,1736170245142,-537.0,0.00011121,2]
[347865285,1736170245151,-1103.0,0.00011121,2]
[347865287,1736170245160,-150.0,0.00011121,2]
[347865289,1736170245169,-1267.0,0.00011121,2]
[347865291,1736170245179,-3894.0,0.00011121,2]
[347865293,1736170245189,-636.0,0.00011121,2]
[347865295,1736170245198,-2014.0,0.00011121,2]
[347865297,1736170245207,-6938.604,0.00011121,2]
[347865299,1736170245217,-151.771848,0.00011143,2]
[347865301,1736170245226,-437.72,0.00011151,2]
[347865303,1736170245235,-437.72,0.00011151,2]
[347865305,1736170245244,-771.82,0.00011151,2]
[347865307,1736170245253,-771.82,0.00011151,2]
[347865309,1736170245262,-771.82,0.00011151,2]
[347865311,1736170245272,-771.82,0.00011151,2]
[347865313,1736170245281,-500.0,0.00011153,2]
[347865315,1736170245290,-515.76715586,0.0001119,2]
[347865317,1736170245304,-500.0,0.00011263,2]
[347865319,1736170245314,-2000.0,0.00011263,2]
[347865321,1736170245323,-500.0,0.00011263,2]
[347865323,1736170245333,-200.0,0.00011263,2]
[347865325,1736170245343,-1719.33,0.00011272,2]
[347865327,1736170245352,-977.19,0.00011272,2]
[347865329,1736170245361,-2598.67,0.00011272,2]
[347865331,1736170245372,-1141.28,0.00011272,2]
[347865333,1736170245381,-1632.44,0.00011272,2]
[347865335,1736170245391,-940.3,0.00011272,2]
[347865337,1736170245401,-611.9,0.00011272,2]
[347865339,1736170245410,-500.0,0.00011272,2]
[347865341,1736170245419,-1084.87,0.00011272,2]
[347865343,1736170245429,-2061.97,0.00011272,2]
[347865345,1736170245438,-1091.79,0.00011272,2]
[347865348,1736170245447,-686.42,0.00011272,2]
[347865351,1736170245456,-500.0,0.00011272,2]
[347865354,1736170245465,-500.0,0.00011272,2]
[347865356,1736170245474,-626.0,0.00011272,2]
[347865358,1736170245484,-500.0,0.00011272,2]
[347865360,1736170245494,-500.0,0.00011272,2]
[347865363,1736170245503,-500.0,0.00011272,2]
[347865365,1736170245512,-1171.14,0.00011272,2]
[347865367,1736170245521,-1059.68,0.00011272,2]
[347865369,1736170245530,-1753.93,0.00011272,2]
[347865372,1736170245539,-5104.87,0.00011272,2]
[347865374,1736170245548,-547.95,0.00011292,2]
[347865376,1736170245558,-514.33,0.00011292,2]
[347865378,1736170245567,-515.76715586,0.00011297,2]
[347865380,1736170245576,-438.5691304,0.00011304,2]
[347865382,1736170245585,-1208.37,0.00011317,2]
[347865384,1736170245594,-1269.11,0.00011317,2]
[347865386,1736170245603,-593.08,0.00011317,2]
[347865388,1736170245612,-500.0,0.00011317,2]
[347865390,1736170245621,-1162.08,0.00011317,2]
[347865392,1736170245630,-500.0,0.00011317,2]
[347865410,1736170245805,-519.46,0.00011317,2]
[347865411,1736170245815,-500.0,0.00011317,2]
[347865412,1736170245825,-614.75,0.00011317,2]
[347865413,1736170245835,-489.9751322,0.00011317,2]
[347865415,1736170245845,-2444.24,0.00011317,2]
[347865417,1736170245855,-436.97,0.0001137,2]
[347865419,1736170245864,-150.0,0.0001137,2]
[347865421,1736170245873,-979.32,0.0001137,2]
[347865423,1736170245883,-150.0,0.0001137,2]
[347865424,1736170245892,-301.04,0.0001137,2]
[347865425,1736170245901,-150.0,0.0001137,2]
[347865426,1736170245910,-436.97,0.0001137,2]
[347865427,1736170245920,-150.0,0.0001137,2]
[347865428,1736170245930,-182.83,0.0001137,2]
[347865429,1736170245939,-979.32,0.0001137,2]
[347865430,1736170245949,-150.0,0.0001137,2]
[347865431,1736170245958,-150.0,0.0001137,2]
[347865432,1736170245968,-150.0,0.0001137,2]
[347865433,1736170245977,-150.0,0.0001137,2]
[347865434,1736170245987,-1959.04,0.0001137,2]
[347865435,1736170245996,-150.0,0.0001137,2]
[347865436,1736170246006,-500.0,0.00011392,2]
[347865438,1736170246015,-240.7060963,0.00011392,2]
[347865439,1736170246025,-1217.08,0.00011392,2]
[347865441,1736170246035,-1532.51,0.00011392,2]
[347865443,1736170246045,-500.0,0.00011392,2]
[347865445,1736170246054,-500.0,0.00011392,2]
[347865447,1736170246064,-826.17,0.00011392,2]
[347865449,1736170246074,-653.01,0.00011392,2]
[347865451,1736170246083,-1500.0,0.00011392,2]
[347865452,1736170246092,-2048.33,0.00011392,2]
[347865453,1736170246103,-655.95,0.00011393,2]
[347865454,1736170246113,-1362.29,0.00011393,2]
[347865455,1736170246123,-1160.59,0.00011393,2]
[347865456,1736170246132,-542.92512614,0.00011393,2]
[347865457,1736170246141,-1779.89,0.00011393,2]
[347865458,1736170246151,-937.97,0.00011393,2]
[347865459,1736170246161,-500.0,0.00011393,2]
[347865460,1736170246170,-641.42101747,0.00011393,2]
[347865462,1736170246180,-500.0,0.00011393,2]
[347865464,1736170246189,-500.0,0.00011393,2]
[347865465,1736170246200,-2500.52,0.00011393,2]
[347865467,1736170246209,-500.0,0.00011393,2]
[347865469,1736170246218,-500.0,0.00011393,2]
[347865471,1736170246227,-500.0,0.00011393,2]
[347865473,1736170246236,-295.4,0.00011393,2]
[347865475,1736170246246,-1382.62,0.00011393,2]
[347865477,1736170246256,-500.0,0.00011393,2]
[347865479,1736170246265,-500.0,0.00011393,2]
[347865482,1736170246274,-500.0,0.00011393,2]
[347865483,1736170246285,-500.0,0.00011393,2]
[347865485,1736170246295,-4300.01,0.00011393,2]
[347865488,1736170246307,-500.0,0.00011393,2]
[347865490,1736170246318,-500.0,0.00011393,2]
[347865492,1736170246327,-3578.64,0.00011393,2]
[347865494,1736170246336,-500.0,0.00011393,2]
[347865496,1736170246347,-500.0,0.00011393,2]
[347865498,1736170246356,-500.0,0.00011393,2]
[347865500,1736170246365,-500.0,0.00011393,2]
[347865502,1736170246376,-252.63226712,0.00011393,2]
[347865504,1736170246386,-1035.245729,0.00011393,2]
[347865506,1736170246395,-500.0,0.00011393,2]
[347865508,1736170246404,-1095.613476,0.00011393,2]
[347865510,1736170246413,-1600.59,0.00011393,2]
[347865512,1736170246423,-500.0,0.00011393,2]
[347865514,1736170246432,-2979.27,0.00011393,2]
[347865516,1736170246442,-500.0,0.00011393,2]
[347865518,1736170246451,-500.0,0.00011393,2]
[347865520,1736170246460,-500.0,0.00011393,2]
[347865521,1736170246470,-500.0,0.00011393,2]
[347865523,1736170246479,-645.64,0.00011393,2]
[347865525,1736170246489,-1027.69,0.00011393,2]
[347865527,1736170246498,-500.0,0.00011393,2]
[347865530,1736170246509,-500.0,0.00011393,2]
[347865531,1736170246518,-1801.97,0.00011393,2]
[347865534,1736170246528,-1040.52,0.00011393,2]
[347865535,1736170246537,-500.0,0.00011393,2]
[347865537,1736170246547,-1645.32,0.00011393,2]
[347865540,1736170246557,-500.0,0.00011393,2]
[347865541,1736170246566,-500.0,0.00011393,2]
[347865543,1736170246575,-2061.06,0.00011393,2]
[347865545,1736170246585,-500.0,0.00011393,2]
[347865547,1736170246595,-500.0,0.00011393,2]
[347865549,1736170246604,-500.0,0.00011393,2]
[347865551,1736170246614,-572.85,0.00011393,2]
[347865552,1736170246623,-679.95,0.00011393,2]
[347865553,1736170246633,-2181.44,0.00011393,2]
[347865554,1736170246643,-500.0,0.00011393,2]
[347865555,1736170246652,-500.0,0.00011393,2]
[347865556,1736170246661,-500.0,0.00011393,2]
[347865557,1736170246672,-1457.21,0.00011393,2]
[347865558,1736170246681,-500.0,0.00011393,2]
[347865559,1736170246691,-500.0,0.00011393,2]
[347865560,1736170246710,-500.0,0.00011393,2]
[347865561,1736170246722,-573.52,0.00011393,2]
[347865562,1736170246732,-500.0,0.00011393,2]
[347865563,1736170246742,-636.81,0.00011393,2]
[347865564,1736170246752,-944.53,0.00011393,2]
[347865565,1736170246763,-500.0,0.00011393,2]
[347865566,1736170246773,-2089.79,0.00011393,2]
[347865567,1736170246784,-500.0,0.00011393,2]
[347865568,1736170246794,-944.14,0.00011393,2]
[347865569,1736170246804,-500.0,0.00011394,2]
[347865570,1736170246814,-567.05457897,0.00011394,2]
[347865571,1736170246824,-549.62,0.00011394,2]
[347865572,1736170246834,-500.0,0.00011394,2]
[347865573,1736170246843,-500.0,0.00011394,2]
[347865574,1736170246853,-1676.32,0.00011394,2]
[347865575,1736170246863,-500.0,0.00011394,2]
[347865576,1736170246873,-500.0,0.00011394,2]
[347865577,1736170246883,-500.0,0.00011394,2]
[347865578,1736170246892,-594.78,0.00011394,2]
[347865579,1736170246904,-1136.96,0.00011394,2]
[347865580,1736170246916,-500.0,0.00011394,2]
[347865581,1736170246927,-2498.05,0.00011394,2]
[347865582,1736170246937,-635.2,0.00011394,2]
[347865583,1736170246951,-500.0,0.00011394,2]
[347865584,1736170246964,-703.28071847,0.00011401,2]
[347865585,1736170246975,-515.76715586,0.00011403,2]
[347865586,1736170246985,-1500.0,0.00011408,2]
[347865587,1736170246997,-1500.0,0.00011413,2]
[347865588,1736170247007,-172.54151581,0.00011423,2]
[347865589,1736170247017,-37.65766626,0.00011424,2]
[347865590,1736170247048,-1462.34233374,0.00011424,2]
[347865591,1736170247058,-95.98713519,0.00011424,2]
[347865592,1736170247074,-54.01286481,0.00011424,2]
[347865593,1736170247083,-219.87440722,0.00011425,2]
[347865594,1736170247104,-284.3,0.00010298,2]
[347865595,1736170247117,-504.29,0.00010298,2]
[347865596,1736170247127,-217.84559278,0.00011425,2]
[347865597,1736170247137,-771.82,0.00011425,2]
[347865598,1736170247147,-1604.2,0.00011425,2]
[347865599,1736170247156,-92.84440722,0.00011425,2]
[347865600,1736170247170,-57.15559278,0.00011425,2]
[347865601,1736170247179,-150.0,0.00011425,2]
[347865602,1736170247189,-245.74440722,0.00011425,2]
[347865603,1736170247201,-428.9,0.00011425,2]
[347865604,1736170247212,-303.92559278,0.00011425,2]
[347865605,1736170247222,-436.76,0.00011425,2]
[347865606,1736170247232,-150.0,0.00011425,2]
[347865607,1736170247241,-150.0,0.00011429,2]
[347865608,1736170247251,-150.0,0.0001143,2]
[347865609,1736170247260,-150.0,0.00011433,2]
[347865610,1736170247270,-150.50152616,0.00011436,2]
[347865611,1736170247279,-150.0,0.00011437,2]
[347865612,1736170247289,-150.0,0.00011439,2]
[347865613,1736170247302,-150.0,0.0001144,2]
[347865614,1736170247311,-150.0,0.0001144,2]
[347865615,1736170247321,-150.0,0.00011441,2]
[347865616,1736170247331,-150.0,0.00011441,2]
[347865617,1736170247340,-233.48297086,0.00011442,2]
[347865618,1736170247350,-150.0,0.00011445,2]
[347865619,1736170247359,-150.0,0.00011449,2]
[347865620,1736170247368,-150.0,0.00011456,2]
[347865621,1736170247377,-150.0,0.00011459,2]
[347865622,1736170247387,-150.0,0.00011469,2]
[347865623,1736170247396,-150.0,0.00011469,2]
[347865624,1736170247406,-150.0,0.0001147,2]
[347865625,1736170247416,-198.0576113,0.00011473,2]
[347865626,1736170247425,-150.0,0.00011473,2]
[347865627,1736170247435,-150.0,0.00011476,2]
[347865628,1736170247445,-150.0,0.00011476,2]
[347865629,1736170247454,-1500.0,0.00011479,2]
[347865630,1736170247463,-150.0,0.00011479,2]
[347865631,1736170247473,-150.0,0.00011479,2]
[347865632,1736170247482,-150.0,0.00011479,2]
[347865633,1736170247492,-150.0,0.0001148,2]
[347865634,1736170247502,-1139.0,0.00011483,2]
[347865635,1736170247511,-150.0,0.00011485,2]
[347865636,1736170247521,-150.0,0.00011491,2]
[347865637,1736170247530,-150.0,0.00011494,2]
[347865638,1736170247540,-150.0,0.00011494,2]
[347865639,1736170247549,-150.0,0.00011494,2]
[347865640,1736170247559,-150.0,0.00011494,2]
[347865641,1736170247568,-1500.0,0.00011496,2]
[347865642,1736170247577,-150.0,0.00011497,2]
[347865643,1736170247587,-42.78432191,0.00011498,2]
[347865644,1736170247599,-107.21567809,0.00011498,2]
[347865645,1736170247608,-150.0,0.00011501,2]
[347865646,1736170247618,-1465.8828707,0.00011503,2]
[347865647,1736170247629,-34.1171293,0.00011503,2]
[347865648,1736170247639,-473.1729475,0.00011504,2]
[347865649,1736170247654,-1026.8270525,0.00011504,2]
[347865650,1736170247663,-1500.0,0.00011506,2]
[347865651,1736170247674,-150.0,0.00011508,2]
[347865652,1736170247683,-150.0,0.0001151,2]
[347865653,1736170247692,-515.76715586,0.0001151,2]
[347865654,1736170247701,-150.0,0.00011513,2]
[347865655,1736170247711,-150.0,0.00011514,2]
[347865656,1736170247720,-150.0,0.00011516,2]
[347865657,1736170247730,-150.0,0.00011517,2]
[347865658,1736170247740,-150.0,0.00011518,2]
[347865659,1736170247749,-150.0,0.00011525,2]
[347865660,1736170247759,-150.0,0.00011528,2]
[347865661,1736170247768,-86.61328272,0.00011528,2]
[347865662,1736170248304,-498.8096,9.888e-05,2]
[347865663,1736170248316,-500.0,0.00010197,2]
[347865664,1736170248325,-500.0,0.00010221,2]
[347865665,1736170248335,-500.0,0.00010221,2]
[347865666,1736170248344,-500.0,0.00010495,2]
[347865667,1736170248354,-500.0,0.0001057,2]
[347865668,1736170248363,-195.02053,0.00010571,2]
[347865669,1736170248372,-681.78,0.00010572,2]
[347865670,1736170248381,-788.59,0.00010572,2]
[347865671,1736170248391,-500.0,0.00010844,2]
[347865672,1736170248401,-681.78,0.00010846,2]
[347865673,1736170248411,-788.59,0.00010846,2]
[347865674,1736170248420,-500.0,0.00011118,2]
[347865675,1736170248430,-681.78,0.0001112,2]
[347865676,1736170248439,-500.0,0.00011392,2]
[347865677,1736170248449,-63.38671728,0.00011528,2]
[347865678,1736170248459,-150.0,0.00011529,2]
[347865679,1736170248468,-150.0,0.00011533,2]
[347865680,1736170248477,-150.0,0.00011534,2]
[347865681,1736170248486,-1500.0,0.00011538,2]
[347865682,1736170248495,-150.0,0.00011539,2]
[347865683,1736170248505,-150.0,0.00011539,2]
[347865684,1736170248514,-150.0,0.00011539,2]
[347865685,1736170248524,-1500.0,0.00011541,2]
[347865686,1736170248533,-150.0,0.00011541,2]
[347865687,1736170248543,-150.0,0.00011542,2]
[347865688,1736170248553,-150.0,0.00011544,2]
[347865689,1736170248562,-150.0,0.00011544,2]
[347865690,1736170248571,-1719.33,0.00011546,2]
[347865691,1736170248580,-977.19,0.00011546,2]
[347865692,1736170248590,-2598.67,0.00011546,2]
[347865693,1736170248599,-1141.28,0.00011546,2]
[347865694,1736170248609,-1632.44,0.00011546,2]
[347865695,1736170248619,-940.3,0.00011546,2]
[347865696,1736170248628,-524.79,0.00011546,2]
[347865697,1736170248637,-1084.87,0.00011546,2]
[347865698,1736170248647,-2061.97,0.00011546,2]
[347865699,1736170248655,-1091.79,0.00011546,2]
[347865700,1736170248663,-686.42,0.00011546,2]
[347865701,1736170248673,-500.0,0.00011546,2]
[347865702,1736170248682,-500.0,0.00011546,2]
[347865703,1736170248691,-626.0,0.00011546,2]
[347865704,1736170248701,-500.0,0.00011546,2]
[347865705,1736170248711,-500.0,0.00011546,2]
[347865706,1736170248720,-500.0,0.00011546,2]
[347865707,1736170248730,-261.86906366,0.00011546,2]
[347865708,1736170248742,-909.27093634,0.00011546,2]
[347865709,1736170248752,-150.0,0.00011546,2]
[347865710,1736170248761,-1059.68,0.00011546,2]
[347865711,1736170248770,-1753.93,0.00011546,2]
[347865712,1736170248779,-5104.87,0.00011546,2]
[347865713,1736170248789,-150.0,0.00011548,2]
[347865714,1736170248798,-150.0,0.00011552,2]
[347865715,1736170248807,-150.0,0.00011552,2]
[347865716,1736170248817,-150.0,0.00011552,2]
[347865717,1736170248827,-150.0,0.00011552,2]
[347865718,1736170248836,-150.0,0.00011554,2]
[347865719,1736170248846,-150.0,0.00011555,2]
[347865720,1736170248855,-1500.0,0.00011557,2]
[347865721,1736170248864,-150.0,0.00011558,2]
[347865722,1736170248873,-1055.8392632,0.00011558,2]
[347865723,1736170248885,-432.07958816,0.00011558,2]
[347865724,1736170248895,-150.0,0.00011559,2]
[347865725,1736170248905,-150.0,0.0001156,2]
[347865726,1736170248915,-150.0,0.00011562,2]
[347865727,1736170248924,-150.0,0.00011563,2]
[347865728,1736170248934,-150.0,0.00011563,2]
[347865729,1736170248944,-150.0,0.00011563,2]
[347865730,1736170248954,-150.0,0.00011563,2]
[347865731,1736170248964,-1487.91885136,0.00011563,2]
[347865732,1736170248974,-547.95,0.00011566,2]
[347865733,1736170248983,-514.33,0.00011566,2]
[347865734,1736170248997,-136.37091879,0.00011568,2]
[347865735,1736170249009,-8712.70635,0.00011568,2]
[347865736,1736170249021,-1030.9648877,0.00011568,2]
[347865737,1736170249041,-1520.66869234,0.00011568,2]
[347865738,1736170249052,-1819.31082074,0.00011568,2]
[347865739,1736170249064,-907.67556001,0.00011568,2]
[347865740,1736170249075,-7379.43425459,0.00011568,2]
[347865746,1736170969917,475.42,8.219e-05,2]
[347865749,1736171103819,200.1811951,8.258e-05,2]
[347865759,1736171431932,-250.0,9.507e-05,2]
[347865760,1736171431942,-160.61,9.515e-05,2]
[347865761,1736171431951,-250.0,9.528e-05,2]
[347865762,1736171431961,-500.0,9.767e-05,2]
[347865763,1736171431970,-1000.0,9.851e-05,2]
[347865764,1736171431979,-1000.0,9.9e-05,2]
[347865765,1736171431988,-434.77,9.982e-05,2]
[347865766,1736171431997,-184.51,9.987e-05,2]
[347865767,1736171432007,-228.82996769,0.0001,2]
[347865768,1736171432016,-228.82996754,0.00010003,2]
[347865769,1736171432026,-150.0,0.00010082,2]
[347865770,1736171432035,-228.82996754,0.00010107,2]
[347865771,1736171432045,-504.58,0.00010137,2]
[347865772,1736171432054,-9999.99,0.00010137,2]
[347865773,1736171432064,-1000.0,0.00010196,2]
[347865774,1736171432074,-150.0,0.00010196,2]
[347865775,1736171432083,-514.41491881,0.00010197,2]
[347865776,1736171432093,-500.0,0.00010197,2]
[347865777,1736171432103,-500.0,0.00010197,2]
[347865778,1736171432112,-500.0,0.00010197,2]
[347865779,1736171432121,-520.43,0.00010197,2]
[347865780,1736171432131,-402.42553196,0.00010197,2]
[347865781,1736171432140,-500.0,0.00010197,2]
[347865782,1736171432149,-500.0,0.00010197,2]
[347865783,1736171432159,-500.0,0.00010197,2]
[347865784,1736171432168,-500.0,0.00010197,2]
[347865785,1736171432178,-577.82,0.00010197,2]
[347865786,1736171432187,-500.0,0.00010197,2]
[347865787,1736171432197,-500.0,0.00010197,2]
[347865788,1736171432207,-500.0,0.00010197,2]
[347865789,1736171432216,-500.0,0.00010197,2]
[347865790,1736171432225,-361.44370061,0.00010197,2]
[347865791,1736171432234,-500.0,0.00010197,2]
[347865792,1736171432244,-500.0,0.00010197,2]
[347865793,1736171432253,-281.12342451,0.00010197,2]
[347865794,1736171432263,-500.0,0.00010197,2]
[347865795,1736171432273,-504.21099369,0.00010197,2]
[347865796,1736171432283,-500.0,0.00010197,2]
[347865797,1736171432292,-500.0,0.00010197,2]
[347865798,1736171432301,-555.8,0.00010197,2]
[347865799,1736171432311,-500.0,0.00010197,2]
[347865800,1736171432321,-500.0,0.00010197,2]
[347865801,1736171432331,-505.22785167,0.00010197,2]
[347865802,1736171432341,-500.0,0.00010197,2]
[347865803,1736171432351,-500.0,0.00010197,2]
[347865804,1736171432360,-500.0,0.00010197,2]
[347865805,1736171432369,-500.0,0.00010197,2]
[347865806,1736171432379,-500.0,0.00010197,2]
[347865807,1736171432389,-500.0,0.00010197,2]
[347865808,1736171432398,-500.0,0.00010197,2]
[347865810,1736171432407,-332.51920913,0.00010197,2]
[347865813,1736171432419,-167.48079087,0.00010197,2]
[347865815,1736171432429,-500.0,0.00010197,2]
[347865816,1736171432438,-500.0,0.00010197,2]
[347865817,1736171432448,-500.0,0.00010197,2]
[347865818,1736171432457,-500.0,0.00010197,2]
[347865819,1736171432467,-500.0,0.00010197,2]
[347865820,1736171432477,-559.07,0.00010197,2]
[347865821,1736171432486,-500.0,0.00010197,2]
[347865822,1736171432495,-500.0,0.00010197,2]
[347865823,1736171432505,-500.0,0.00010197,2]
[347865825,1736171432515,-500.0,0.00010197,2]
[347865827,1736171432524,-228.82996754,0.0001021,2]
[347865828,1736171432534,-500.5197249,0.00010221,2]
[347865830,1736171432543,-500.0,0.00010221,2]
[347865831,1736171432553,-500.0,0.00010221,2]
[347865832,1736171432562,-531.91464029,0.00010221,2]
[347865833,1736171432572,-500.0,0.00010221,2]
[347865834,1736171432581,-500.0,0.00010221,2]
[347865835,1736171432591,-500.0,0.00010221,2]
[347865836,1736171432601,-500.0,0.00010221,2]
[347865837,1736171432614,-500.82,0.00010221,2]
[347865839,1736171432624,-500.0,0.00010221,2]
[347865840,1736171432634,-500.0,0.00010221,2]
[347865842,1736171432643,-500.0,0.00010221,2]
[347865843,1736171432654,-500.0,0.00010221,2]
[347865844,1736171432663,-500.0,0.00010221,2]
[347865845,1736171432673,-500.0,0.00010221,2]
[347865846,1736171432682,-500.0,0.00010221,2]
[347865847,1736171432693,-500.0,0.00010221,2]